bitfinex/quotes_ETHUSD_20250803
["timestamp","ask_amount","ask_price","bid_price","bid_amount"]
[1754200578948,4.4,3451.1,3451.0,0.9011]
[1754200579352,4.4,3451.1,3451.0,0.002]
[1754200579566,4.4,3451.1,3451.0,0.9011]
[1754200580164,0.001,3451.3,3451.0,0.9011]
[1754200580362,0.001,3451.3,3451.1,0.9391]
[1754200580564,4.399,3451.2,3451.1,0.9391]
[1754200581186,4.67031147,3451.2,3451.1,0.9391]
[1754200581948,30.0,3451.1,3451.0,0.002]
[1754200582162,30.27131147,3451.1,3451.0,0.002]
[1754200582374,4.399,3451.1,3451.0,0.9411]
[1754200582758,4.6701547,3451.1,3451.0,0.9411]
[1754200583384,4.399,3451.1,3451.0,0.9411]
[1754200585379,4.399,3451.1,3451.0,0.002]
[1754200585688,4.399,3451.1,3451.0,0.9411]
[1754200589685,4.399,3451.1,3451.0,0.002]
[1754200590078,4.8612,3451.1,3451.0,0.002]
[1754200590275,4.399,3451.1,3451.0,0.4505]
[1754200590481,4.399,3451.1,3451.0,0.9411]
[1754200591355,4.8612,3451.1,3451.0,0.002]
[1754200591559,36.09906223,3451.1,3451.0,0.002]
[1754200594498,6.09906223,3451.1,3451.0,0.002]
[1754200594702,36.09906223,3451.1,3451.0,0.002]
[1754200595001,36.09904316,3451.1,3451.0,0.002]
[1754200599627,36.09900393,3451.1,3451.0,0.002]
[1754200599825,6.09900393,3451.1,3451.0,0.002]
[1754200600329,36.09900393,3451.1,3451.0,0.002]
[1754200600833,34.66988393,3451.1,3451.0,0.002]
[1754200602510,35.13208393,3451.1,3451.0,0.002]
[1754200603831,35.13206394,3451.1,3451.0,0.002]
[1754200604597,5.13206394,3451.1,3451.0,0.002]
[1754200604802,35.13206394,3451.1,3451.0,0.002]
[1754200606023,35.56906394,3451.1,3451.0,0.002]
[1754200606225,37.29158073,3451.1,3451.0,0.002]
[1754200606729,37.29159326,3451.1,3451.0,0.002]
[1754200609939,7.29159326,3451.1,3451.0,0.002]
[1754200610138,35.56907647,3451.1,3451.0,0.002]
[1754200612415,35.56904821,3451.1,3451.0,0.002]
[1754200613239,5.56904821,3451.1,3451.0,0.002]
[1754200613551,35.56904821,3451.1,3451.0,0.002]
[1754200618141,35.569244,3451.1,3451.0,0.002]
[1754200618389,38.43749107,3451.1,3451.0,0.002]
[1754200619521,8.43749107,3451.1,3451.0,0.002]
[1754200619722,35.569244,3451.1,3451.0,0.002]
[1754200620744,35.56940033,3451.1,3451.0,0.002]
[1754200621651,5.13240033,3451.1,3451.0,0.002]
[1754200621852,35.13240033,3451.1,3451.0,0.002]
[1754200622242,35.59880033,3451.1,3451.0,0.002]
[1754200622451,38.4670474,3451.1,3451.0,0.002]
[1754200623317,38.19584707,3451.1,3451.0,0.002]
[1754200623721,8.19584707,3451.1,3451.0,0.002]
[1754200623933,35.3276,3451.1,3451.0,0.002]
[1754200625244,35.8776,3451.1,3451.0,0.002]
[1754200627054,37.6196,3451.1,3451.0,0.002]
[1754200627355,37.1532,3451.1,3451.0,0.002]
[1754200627858,37.6196,3451.1,3451.0,0.002]
[1754200628152,40.48784707,3451.1,3451.0,0.002]
[1754200628530,37.72844707,3451.1,3451.0,0.002]
[1754200628948,38.19484707,3451.1,3451.0,0.002]
[1754200629253,40.48884707,3451.1,3451.0,0.002]
[1754200629935,10.48884707,3451.1,3451.0,0.002]
[1754200630136,40.48884707,3451.1,3451.0,0.002]
[1754200632060,10.48884707,3451.1,3451.0,0.002]
[1754200632259,37.1542,3451.1,3451.0,0.002]
[1754200633561,7.1542,3451.1,3451.0,0.002]
[1754200633933,37.1542,3451.1,3451.0,0.002]
[1754200634129,30.0,3451.1,3451.0,0.002]
[1754200634329,34.398,3451.1,3451.0,0.9432]
[1754200634736,34.398,3451.1,3451.0,0.002]
[1754200636742,37.72934707,3451.1,3451.0,0.002]
[1754200641249,7.72934707,3451.1,3451.0,0.002]
[1754200641482,34.8611,3451.1,3451.0,0.002]
[1754200642283,4.8611,3451.1,3451.0,0.002]
[1754200642490,35.16821853,3451.1,3451.0,0.002]
[1754200642781,35.1319982,3451.1,3451.0,0.002]
[1754200644768,34.6688982,3451.1,3451.0,0.002]
[1754200645067,4.6688982,3451.1,3451.0,0.002]
[1754200645376,34.6688982,3451.1,3451.0,0.002]
[1754200646888,35.1340982,3451.1,3451.0,0.002]
[1754200647077,38.00234527,3451.1,3451.0,0.002]
[1754200647249,40.21794527,3451.1,3451.0,0.002]
[1754200647456,38.47394527,3451.1,3451.0,0.002]
[1754200648595,40.76794527,3451.1,3451.0,0.002]
[1754200650173,40.29634527,3451.1,3451.0,0.002]
[1754200650491,10.29634527,3451.1,3451.0,0.002]
[1754200650705,37.4280982,3451.1,3451.0,0.002]
[1754200654676,34.6688982,3451.1,3451.0,0.002]
[1754200655594,35.1340982,3451.1,3451.0,0.002]
[1754200660683,35.13445655,3451.1,3451.0,0.002]
[1754200662035,34.66925655,3451.1,3451.0,0.4444]
[1754200662190,34.66925655,3451.1,3451.0,0.9022]
[1754200662686,34.66925655,3451.1,3451.0,0.4444]
[1754200662881,4.66925655,3451.1,3451.0,0.4444]
[1754200663088,34.66925655,3451.1,3451.0,0.4444]
[1754200664301,37.53750362,3451.1,3451.0,0.002]
[1754200666317,38.00270362,3451.1,3451.0,0.002]
[1754200667022,8.00270362,3451.1,3451.0,0.002]
[1754200667318,35.13445655,3451.1,3451.0,0.002]
[1754200668533,34.66925655,3451.1,3451.0,0.002]
[1754200668833,35.13445655,3451.1,3451.0,0.002]
[1754200669322,5.13445655,3451.1,3451.0,0.002]
[1754200669541,35.13445655,3451.1,3451.0,0.002]
[1754200669691,35.87589269,3451.1,3451.0,0.002]
[1754200671688,34.66825655,3451.1,3451.0,0.9594]
[1754200672729,30.27125655,3451.1,3451.0,0.9594]
[1754200672934,4.66825655,3451.1,3451.0,0.9594]
[1754200673221,4.397,3451.1,3451.0,0.9594]
[1754200673792,4.397,3451.1,3451.0,1.1424922]
[1754200674096,4.397,3451.1,3451.0,0.9594]
[1754200678409,4.397,3451.3,3451.0,0.9594]
[1754200678612,4.397,3451.3,3451.1,0.9574]
[1754200678812,4.397,3451.3,3451.0,0.002]
[1754200679012,4.397,3451.3,3451.1,0.9574]
[1754200679211,4.397,3451.3,3451.0,0.002]
[1754200679432,4.397,3451.3,3451.1,0.9574]
[1754200679632,4.397,3451.3,3451.2,0.4609]
[1754200679809,4.397,3451.3,3451.2,0.9574]
[1754200680122,0.001,3451.3,3451.2,0.9574]
[1754200680321,0.001,3451.3,3451.0,0.002]
[1754200680546,0.001,3451.3,3451.2,0.9574]
[1754200682439,0.001,3451.3,3451.2,2.05815046]
[1754200682658,0.001,3451.3,3451.2,2.02917504]
[1754200684843,0.001,3451.3,3451.2,2.14533504]
[1754200685655,0.001,3451.3,3451.2,2.17431046]
[1754200686362,0.001,3451.3,3451.2,5.72431046]
[1754200686544,0.001,3451.3,3451.2,5.69533504]
[1754200691460,0.001,3451.3,3451.2,10.08933504]
[1754200693327,0.001,3451.3,3451.2,10.23413504]
[1754200693749,0.001,3451.3,3451.2,5.84013504]
[1754200693965,0.001,3451.3,3451.2,10.08933504]
[1754200702658,0.001,3451.3,3451.2,5.69533504]
[1754200702999,0.001,3451.3,3451.2,10.08833504]
[1754200711114,0.001,3451.3,3451.2,5.69533504]
[1754200711315,0.001,3451.3,3451.2,10.08833504]
[1754200712104,0.001,3451.3,3451.2,10.08733504]
[1754200722538,0.001,3451.3,3451.2,5.69533504]
[1754200722746,0.001,3451.3,3451.2,9.12993504]
[1754200723438,0.001,3451.3,3451.2,9.59013504]
[1754200723639,0.001,3451.3,3451.2,10.08183504]
[1754200724720,0.001,3451.3,3451.2,9.59013504]
[1754200725035,0.4566,3451.3,3451.2,4.73793504]
[1754200725338,0.4566,3451.3,3451.2,9.12993504]
[1754200725634,0.001,3451.3,3451.2,9.12993504]
[1754200726020,0.4566,3451.3,3451.2,9.12993504]
[1754200726212,0.001,3451.3,3451.2,9.12993504]
[1754200727452,0.001,3451.3,3451.2,4.73793504]
[1754200728015,0.4566,3451.3,3451.2,9.12993504]
[1754200729147,0.001,3451.3,3451.2,9.12993504]
[1754200730444,0.4703,3451.3,3451.2,9.12993504]
[1754200731517,0.001,3451.3,3451.2,9.12993504]
[1754200737764,0.4693,3451.5,3451.3,3.6408378]
[1754200738064,0.001,3451.9,3451.4,13.26824811]
[1754200738262,0.001,3452.3,3451.9,3.55]
[1754200738588,0.001,3452.3,3452.0,7.941]
[1754200738756,0.001,3452.3,3452.0,9.01277504]
[1754200738956,0.001,3452.3,3452.0,10.41177504]
[1754200739325,0.4703,3452.3,3452.0,9.95237504]
[1754200739529,0.4703,3452.3,3452.0,9.48207504]
[1754200741531,0.4693,3452.2,3452.0,9.48207504]
[1754200743367,0.001,3452.3,3452.0,9.48207504]
[1754200743544,0.4703,3452.1,3452.0,9.48207504]
[1754200745234,0.001,3452.1,3452.0,9.48207504]
[1754200750451,0.001,3452.1,3452.0,9.95237504]
[1754200750653,0.001,3452.1,3452.0,10.41177504]
[1754200753473,0.001,3452.1,3452.0,9.95237504]
[1754200754787,0.001,3452.1,3452.0,9.48207504]
[1754200758191,0.4703,3452.1,3452.0,9.48207504]
[1754200758892,0.001,3452.1,3452.0,9.48207504]
[1754200760398,0.4996,3452.1,3452.0,9.48007504]
[1754200761889,0.001,3452.1,3452.0,9.48007504]
[1754200766490,0.001,3452.1,3452.0,10.42077504]
[1754200769375,0.001,3452.1,3452.0,9.94547504]
[1754200773522,0.001,3452.1,3452.0,10.42077504]
[1754200773818,0.001,3452.1,3452.0,9.94547504]
[1754200774123,0.001,3452.1,3452.0,9.48007504]
[1754200775825,0.001,3452.1,3452.0,9.94547504]
[1754200776329,0.001,3452.1,3452.0,9.48007504]
[1754200778193,0.001,3452.1,3452.0,5.09107504]
[1754200778495,0.9524,3452.1,3452.0,5.09107504]
[1754200778690,0.9524,3452.1,3452.0,4.0193]
[1754200778907,0.9524,3452.1,3452.0,9.06298267]
[1754200779129,0.9524,3452.1,3452.0,0.4693]
[1754200779324,0.9524,3452.1,3452.0,4.8573]
[1754200779506,0.9524,3452.1,3452.0,7.8573]
[1754200779902,0.9524,3452.1,3452.0,12.90098267]
[1754200780104,0.9524,3452.1,3452.0,14.19128094]
[1754200780916,0.9524,3452.1,3452.0,9.14759827]
[1754200782622,0.9524,3452.1,3452.0,4.75959827]
[1754200782824,0.9524,3452.1,3452.0,7.8573]
[1754200789254,0.4996,3452.1,3452.0,7.8573]
[1754200791351,0.9652,3452.1,3452.0,7.8573]
[1754200793363,0.9652,3452.1,3452.0,3.4693]
[1754200793684,0.9652,3452.1,3452.0,7.8573]
[1754200794734,0.9652,3452.1,3452.0,3.4693]
[1754200794948,0.9652,3452.1,3452.0,7.8563]
[1754200795350,0.9652,3452.1,3452.0,3.4693]
[1754200795665,0.9652,3452.1,3451.9,4.389]
[1754200795863,0.9415,3452.0,3451.9,0.002]
[1754200800461,0.4759,3452.0,3451.9,0.002]
[1754200800768,0.9415,3452.0,3451.9,0.002]
[1754200803952,0.001,3452.1,3451.9,0.002]
[1754200804153,0.001,3452.1,3451.9,0.7409]
[1754200804479,0.001,3452.1,3452.0,3.9078]
[1754200804943,0.001,3452.1,3452.0,3.4285]
[1754200805440,0.001,3452.1,3452.0,3.0]
[1754200805652,0.001,3452.1,3452.0,3.9078]
[1754200805975,0.001,3452.1,3452.0,5.32791812]
[1754200806681,0.001,3452.1,3452.0,5.44405112]
[1754200807575,0.001,3452.1,3452.0,5.41508241]
[1754200808143,0.001,3452.1,3452.0,5.44405112]
[1754200808340,0.001,3452.1,3452.0,5.99405112]
[1754200808584,0.001,3452.1,3452.0,5.96508241]
[1754200813174,0.001,3452.1,3452.0,5.32508241]
[1754200815291,0.001,3452.1,3452.0,9.56508241]
[1754200831732,0.001,3452.1,3452.0,13.04328241]
[1754200831902,0.4673,3452.1,3452.0,13.04328241]
[1754200832796,0.001,3452.3,3452.1,0.55]
[1754200832996,0.459,3452.3,3452.2,7.936]
[1754200833332,0.459,3452.3,3452.2,8.0808]
[1754200834647,0.001,3452.3,3452.2,8.0808]
[1754200834858,0.001,3452.3,3452.2,9.47194941]
[1754200835036,0.001,3452.3,3452.2,9.95254941]
[1754200835614,0.001,3452.3,3452.2,10.41154941]
[1754200835796,0.001,3452.3,3452.2,10.62599057]
[1754200836001,0.4673,3453.0,3452.3,3.55]
[1754200836201,0.9253,3452.7,3452.6,9.72473548]
[1754200836431,0.459,3452.7,3452.6,14.25453548]
[1754200836629,0.9253,3452.7,3452.6,15.12526048]
[1754200837878,0.4673,3452.7,3452.6,15.12526048]
[1754200838180,0.9253,3452.7,3452.6,15.12526048]
[1754200838348,0.9253,3452.7,3452.6,16.51640989]
[1754200839473,0.001,3452.7,3452.6,16.51640989]
[1754200839678,0.001,3452.7,3452.6,17.45680989]
[1754200842032,0.001,3452.7,3452.6,16.99700989]
[1754200844514,0.001,3452.7,3452.6,17.45680989]
[1754200845093,0.001,3452.7,3452.6,18.00680989]
[1754200845614,0.001,3452.7,3452.6,18.14886089]
[1754200846117,0.001,3452.7,3452.6,18.00680989]
[1754200848335,0.001,3452.7,3452.6,18.1545709]
[1754200848539,0.001,3452.7,3452.6,18.00680989]
[1754200848888,0.001,3452.7,3452.6,12.68140989]
[1754200849096,0.001,3452.7,3452.6,17.54600989]
[1754200849444,0.001,3452.7,3452.6,18.00580989]
[1754200850251,0.001,3452.7,3452.6,17.06540989]
[1754200852426,0.001,3452.7,3452.6,12.68140989]
[1754200852727,0.4688,3452.7,3452.6,17.06540989]
[1754200853300,0.001,3452.7,3452.6,17.06540989]
[1754200854245,0.001,3452.7,3452.6,12.68140989]
[1754200854451,0.001,3452.7,3452.6,10.34067441]
[1754200854452,0.9073,3452.7,3452.6,10.34067441]
[1754200856237,0.9073,3452.7,3452.6,5.95667441]
[1754200856439,0.9073,3452.7,3452.6,10.34067441]
[1754200857523,0.4688,3452.7,3452.6,10.34067441]
[1754200857726,0.001,3452.9,3452.7,3.55]
[1754200857990,0.001,3452.9,3452.7,4.2889]
[1754200858121,0.001,3452.9,3452.7,4.7725]
[1754200858315,0.001,3452.9,3452.7,5.352794]
[1754200860939,0.9073,3452.8,3452.7,4.404994]
[1754200861418,0.9073,3452.8,3452.7,8.788994]
[1754200862827,0.4688,3452.8,3452.7,4.404994]
[1754200863020,0.9073,3452.8,3452.7,8.788994]
[1754200864346,0.4688,3452.8,3452.7,8.788994]
[1754200864738,0.001,3452.8,3452.7,8.788994]
[1754200865251,0.001,3452.8,3452.7,9.272594]
[1754200865462,0.001,3452.8,3452.7,9.736794]
[1754200868450,0.001,3452.8,3452.7,9.272594]
[1754200869357,0.001,3452.8,3452.7,9.736794]
[1754200873836,0.001,3452.8,3452.7,9.272594]
[1754200874061,0.001,3452.8,3452.7,8.788994]
[1754200877236,0.001,3452.8,3452.7,13.028994]
[1754200880841,0.4674,3452.8,3452.7,13.028994]
[1754200882174,0.9193,3452.8,3452.7,0.116094]
[1754200882468,0.9193,3452.8,3452.7,7.499094]
[1754200883866,0.9193,3452.8,3452.7,4.499094]
[1754200886690,0.9193,3452.8,3452.7,7.499094]
[1754200892292,0.9193,3452.8,3452.7,3.116094]
[1754200892599,0.9193,3452.8,3452.7,7.499094]
[1754200897117,0.9193,3452.8,3452.7,3.116094]
[1754200897471,0.9193,3452.8,3452.7,7.499094]
[1754200900817,0.001,3452.8,3452.7,7.499094]
[1754200901699,0.4674,3452.8,3452.7,7.499094]
[1754200902091,0.001,3452.8,3452.7,7.499094]
[1754200904325,0.001,3452.8,3452.7,8.8185634]
[1754200904504,0.001,3452.8,3452.7,9.7999634]
[1754200908994,0.001,3452.8,3452.7,9.2499634]
[1754200912829,0.9038,3452.8,3452.7,8.3393634]
[1754200913034,0.9038,3452.8,3452.7,4.498094]
[1754200913428,0.9038,3452.8,3452.7,7.498094]
[1754200915739,0.9038,3452.8,3452.7,3.116094]
[1754200915932,0.9038,3452.8,3452.7,7.498094]
[1754200917113,0.4749,3452.8,3452.7,7.498094]
[1754200917714,0.4749,3452.8,3452.7,3.116094]
[1754200917916,0.4749,3452.8,3452.7,7.498094]
[1754200918116,0.001,3452.8,3452.7,3.597494]
[1754200918405,0.001,3452.8,3452.7,8.417694]
[1754200918716,0.001,3452.8,3452.7,7.498094]
[1754200919431,0.9038,3452.8,3452.7,7.498094]
[1754200919633,0.9038,3452.8,3452.7,3.116094]
[1754200919824,0.9038,3452.8,3452.7,7.498094]
[1754200920429,0.4749,3452.8,3452.7,7.498094]
[1754200920631,0.9038,3452.8,3452.7,7.498094]
[1754200920935,0.9038,3452.8,3452.7,7.382]
[1754200922040,0.4749,3452.8,3452.7,7.382]
[1754200922237,0.001,3452.8,3452.7,7.382]
[1754200922429,0.001,3452.8,3452.7,7.8634]
[1754200922802,0.001,3452.8,3452.7,7.382]
[1754200923214,0.9038,3452.8,3452.7,7.8569]
[1754200923842,0.001,3452.8,3452.7,7.8569]
[1754200932221,0.4749,3452.8,3452.7,7.8569]
[1754200932556,0.001,3452.8,3452.7,7.8569]
[1754200935358,0.001,3452.8,3452.7,8.3383]
[1754200938242,0.001,3452.8,3452.7,7.8569]
[1754200938832,0.001,3452.8,3452.7,8.3383]
[1754200940129,0.001,3452.8,3452.7,7.8569]
[1754200940733,0.001,3452.8,3452.7,8.3076]
[1754200941868,0.001,3452.8,3452.7,9.64058]
[1754200945779,0.001,3452.8,3452.7,9.18258]
[1754200946636,0.001,3452.8,3452.7,8.73188]
[1754200947284,0.001,3452.8,3452.7,9.18258]
[1754200950290,0.001,3452.8,3452.7,8.73188]
[1754200951068,0.001,3452.8,3452.7,9.18258]
[1754200952509,0.001,3452.8,3452.7,8.73188]
[1754200952787,0.4775,3452.8,3452.7,7.8569]
[1754200952997,0.001,3452.8,3452.7,7.8569]
[1754200955395,0.001,3452.8,3452.7,8.3076]
[1754200960267,0.001,3452.8,3452.7,15.49033548]
[1754200962272,0.001,3452.8,3452.7,16.04033548]
[1754200962474,0.001,3452.8,3452.7,17.65924903]
[1754200963302,0.001,3452.8,3452.7,24.10713546]
[1754200964527,0.001,3452.8,3452.7,11.99239998]
[1754200964669,0.001,3452.8,3452.7,9.92278643]
[1754200964875,0.001,3452.8,3452.7,14.30378643]
[1754200965512,0.001,3452.8,3452.7,15.21248643]
[1754200967115,0.001,3452.8,3452.7,14.30278643]
[1754200967792,0.001,3452.8,3452.7,14.75348643]
[1754200968328,0.001,3452.8,3452.7,11.44433507]
[1754200968475,0.9516,3452.8,3452.7,14.30278643]
[1754200969205,0.4775,3452.8,3452.7,14.30278643]
[1754200969410,0.001,3452.8,3452.7,14.30278643]
[1754200972875,0.4892,3452.8,3452.7,14.30278643]
[1754200973503,0.001,3452.8,3452.7,14.78528643]
[1754200973911,0.001,3452.8,3452.7,16.71511507]
[1754200983417,0.001,3452.8,3452.7,17.26511507]
[1754200990406,0.001,3452.8,3452.7,10.81722864]
[1754200993944,0.001,3452.8,3452.7,5.50382864]
[1754200994236,0.9491,3452.8,3452.7,9.88282864]
[1754200994732,0.4892,3452.8,3452.7,9.88282864]
[1754200994915,0.001,3452.8,3452.7,9.88282864]
[1754200995705,0.001,3452.8,3452.7,10.36532864]
[1754200996110,0.001,3452.8,3452.7,10.81622864]
[1754201006245,0.001,3452.8,3452.7,6.43722864]
[1754201006459,0.001,3452.8,3452.7,10.80322864]
[1754201007258,0.001,3452.8,3452.7,6.42422864]
[1754201007471,0.001,3452.8,3452.7,10.80322864]
[1754201013757,0.9382,3452.8,3452.7,9.33282864]
[1754201014346,0.001,3452.9,3452.8,3.55]
[1754201014546,0.001,3452.9,3452.8,5.15048277]
[1754201015575,0.001,3452.9,3452.8,5.26657977]
[1754201015889,0.001,3452.9,3452.8,5.23761777]
[1754201016089,0.001,3452.9,3452.8,4.78861777]
[1754201016400,0.001,3452.9,3452.8,4.81757977]
[1754201021856,0.001,3452.9,3452.8,5.26657977]
[1754201024358,0.001,3452.9,3452.8,5.38241777]
[1754201025313,0.001,3452.9,3452.8,4.93341777]
[1754201025604,0.001,3452.9,3452.8,4.46201777]
[1754201028188,0.001,3452.9,3452.8,8.69621777]
[1754201028189,0.9382,3452.9,3452.8,8.69621777]
[1754201028856,0.9382,3452.9,3452.8,8.69521777]
[1754201031090,0.9382,3452.9,3452.8,4.31721777]
[1754201031293,0.9382,3452.9,3452.8,8.69521777]
[1754201033366,0.4911,3452.9,3452.8,3.666097]
[1754201033697,0.4911,3452.9,3452.8,0.116097]
[1754201033698,0.9416,3452.9,3452.8,0.116097]
[1754201033867,0.9416,3452.9,3452.6,0.1468]
[1754201034194,0.9372025,3452.8,3452.6,0.1488]
[1754201034493,0.9372025,3452.8,3452.6,0.002]
[1754201034494,0.901,3452.8,3452.6,0.002]
[1754201034696,0.93720355,3452.7,3452.6,0.002]
[1754201040469,0.901,3452.7,3452.6,0.002]
[1754201042795,0.001,3452.9,3452.6,0.002]
[1754201043106,0.901,3452.7,3452.6,0.002]
[1754201044290,0.901,3452.7,3452.6,0.118134]
[1754201049909,0.4505,3452.7,3452.6,0.118134]
[1754201050112,0.902,3452.9,3452.6,0.118134]
[1754201050281,0.001,3452.9,3452.6,0.118134]
[1754201050496,0.001,3452.9,3452.7,0.498]
[1754201050697,0.001,3452.9,3452.7,0.614124]
[1754201050897,0.001,3452.9,3452.8,0.4314]
[1754201051410,0.001,3452.9,3452.8,0.9294]
[1754201051728,0.001,3452.9,3452.8,0.498]
[1754201051897,0.001,3452.9,3452.8,0.9294]
[1754201052432,0.001,3452.9,3452.7,0.116124]
[1754201052639,0.901,3452.8,3452.7,0.116124]
[1754201057113,0.901,3452.8,3452.6,0.002]
[1754201057314,0.901,3452.7,3452.6,0.002]
[1754201060039,0.4505,3452.7,3452.6,0.002]
[1754201061744,0.8893,3452.7,3452.6,0.002]
[1754201070502,0.001,3452.9,3452.6,0.002]
[1754201070503,30.0,3452.8,3452.6,0.002]
[1754201070735,0.001,3452.9,3452.7,0.4757]
[1754201073926,0.001,3452.9,3452.6,0.4311]
[1754201074252,0.4987,3452.9,3452.6,0.002]
[1754201074648,0.001,3452.9,3452.6,0.002]
[1754201074953,0.4977,3452.8,3452.6,0.002]
[1754201078751,0.9365,3452.8,3452.6,0.002]
[1754201079048,0.4977,3452.7,3452.6,0.002]
[1754201080249,0.4388,3452.8,3452.6,0.002]
[1754201081859,0.9365,3452.8,3452.6,0.002]
[1754201082419,0.4977,3452.8,3452.6,0.002]
[1754201082921,0.03620355,3452.7,3452.6,0.002]
[1754201083121,0.97270355,3452.7,3452.6,0.002]
[1754201083321,0.03620355,3452.7,3452.6,0.002]
[1754201083557,0.9375,3452.9,3452.6,0.002]
[1754201083720,0.97576994,3452.9,3452.6,0.002]
[1754201083920,0.4977,3452.8,3452.6,0.002]
[1754201086255,0.03620355,3452.7,3452.6,0.002]
[1754201086441,0.53390355,3452.7,3452.6,0.002]
[1754201087750,0.97270355,3452.7,3452.6,0.002]
[1754201087969,1.1237709,3452.7,3452.6,0.002]
[1754201088751,1.39546637,3452.7,3452.6,0.002]
[1754201090136,31.39546637,3452.7,3452.6,0.002]
[1754201090337,31.90926282,3452.7,3452.6,0.002]
[1754201091280,35.74326282,3452.7,3452.6,0.002]
[1754201092243,35.47156735,3452.7,3452.6,0.002]
[1754201092441,35.47256735,3452.7,3452.6,0.002]
[1754201093153,36.02256735,3452.7,3452.6,0.002]
[1754201095882,35.00996735,3452.7,3452.6,0.002]
[1754201096100,35.47476735,3452.7,3452.6,0.002]
[1754201097657,34.53806735,3452.7,3452.6,0.002]
[1754201097997,35.00996735,3452.7,3452.6,0.002]
[1754201098505,35.47476735,3452.7,3452.6,0.002]
[1754201098853,34.53806735,3452.7,3452.6,0.002]
[1754201099197,4.53806735,3452.7,3452.6,0.002]
[1754201102186,4.54206735,3452.7,3452.6,0.002]
[1754201102890,0.15106735,3452.7,3452.6,0.002]
[1754201103090,4.54206735,3452.7,3452.6,0.002]
[1754201103293,0.62296735,3452.7,3452.6,0.002]
[1754201103512,5.3277,3452.7,3452.6,0.002]
[1754201103658,35.3277,3452.7,3452.6,0.002]
[1754201104284,4.66211428,3452.7,3452.6,0.002]
[1754201104590,4.69831783,3452.7,3452.6,0.002]
[1754201104793,5.13401428,3452.7,3452.6,0.002]
[1754201105173,5.17021783,3452.7,3452.6,0.002]
[1754201105559,6.19871961,3452.7,3452.6,0.002]
[1754201105759,36.16251606,3452.7,3452.6,0.002]
[1754201106359,36.16551606,3452.7,3452.6,0.002]
[1754201107392,31.77151606,3452.7,3452.6,0.002]
[1754201107600,36.16551606,3452.7,3452.6,0.002]
[1754201108903,36.16554076,3452.7,3452.6,0.002]
[1754201109304,31.7715456,3452.7,3452.6,0.002]
[1754201109504,36.1655456,3452.7,3452.6,0.002]
[1754201110304,6.1655456,3452.7,3452.6,0.002]
[1754201110502,36.1655456,3452.7,3452.6,0.002]
[1754201112016,35.7007456,3452.7,3452.6,0.002]
[1754201112518,35.6936456,3452.7,3452.6,0.002]
[1754201112674,36.1655456,3452.7,3452.6,0.002]
[1754201114487,36.1635456,3452.7,3452.6,0.002]
[1754201115274,31.7715456,3452.7,3452.6,0.002]
[1754201115506,36.1645456,3452.7,3452.6,0.002]
[1754201116371,36.7145456,3452.7,3452.6,0.002]
[1754201117712,36.44340178,3452.7,3452.6,0.002]
[1754201117871,0.83482106,3452.7,3452.6,0.002]
[1754201118072,4.66611928,3452.7,3452.6,0.9135]
[1754201119218,4.66611928,3452.7,3452.6,0.4772]
[1754201119379,34.66611928,3452.7,3452.6,0.002]
[1754201120599,34.66611928,3452.7,3452.6,0.4813]
[1754201120801,7.53436635,3452.7,3452.6,0.9198]
[1754201121110,4.66611928,3452.7,3452.6,0.9198]
[1754201122313,4.61611928,3452.7,3452.6,0.9198]
[1754201122794,4.61611928,3452.7,3452.6,0.002]
[1754201123105,35.13742283,3452.7,3452.6,0.002]
[1754201123299,35.53101928,3452.7,3452.6,0.002]
[1754201124118,8.39926635,3452.7,3452.6,0.002]
[1754201124277,35.53101928,3452.7,3452.6,0.002]
[1754201124608,34.61611928,3452.7,3452.6,0.002]
[1754201129264,4.395,3452.7,3452.6,0.002]
[1754201129538,34.395,3452.7,3452.6,0.002]
[1754201130234,4.395,3452.7,3452.6,0.002]
[1754201130436,34.395,3452.7,3452.6,0.002]
[1754201130614,37.26324707,3452.7,3452.6,0.002]
[1754201130814,38.17814707,3452.7,3452.6,0.002]
[1754201133345,8.17814707,3452.7,3452.6,0.002]
[1754201133508,35.3099,3452.7,3452.6,0.002]
[1754201134355,35.5812376,3452.7,3452.6,0.002]
[1754201135044,35.58123728,3452.7,3452.6,0.002]
[1754201135824,34.66633728,3452.7,3452.6,0.002]
[1754201136019,35.58123728,3452.7,3452.6,0.002]
[1754201136226,7.53458435,3452.7,3452.6,0.002]
[1754201136412,34.66633728,3452.7,3452.6,0.002]
[1754201137433,4.66633728,3452.7,3452.6,0.002]
[1754201137626,34.66333728,3452.7,3452.6,0.002]
[1754201141855,35.14843728,3452.7,3452.6,0.002]
[1754201142447,35.57823728,3452.7,3452.6,0.002]
[1754201142841,38.44648435,3452.7,3452.6,0.002]
[1754201146080,37.53158435,3452.7,3452.6,0.002]
[1754201146256,37.53158435,3452.7,3452.6,0.4813]
[1754201146554,37.53158435,3452.7,3452.6,0.002]
[1754201146765,37.53149329,3452.7,3452.6,0.002]
[1754201146923,38.01659329,3452.7,3452.6,0.002]
[1754201147782,38.44639329,3452.7,3452.6,0.002]
[1754201150267,8.44639329,3452.7,3452.6,0.002]